bitfinex-derivatives/quotes_ETHF0:USTF0_20250908
["timestamp","ask_amount","ask_price","bid_price","bid_amount"]
[1757305603460,0.7145,4305.1,4305.0,3.2078]
[1757305603862,0.5099,4304.6,4304.5,4.0756]
[1757305604359,0.7145,4304.6,4304.5,3.8678]
[1757305606258,0.7145,4304.6,4303.9,4.42417333]
[1757305606458,0.7145,4304.4,4304.3,0.2141]
[1757305606756,0.7145,4304.4,4304.3,0.4481]
[1757305607659,0.7145,4304.4,4304.3,0.66]
[1757305608052,0.7145,4304.4,4304.3,0.8678]
[1757305608863,0.1174,4304.5,4304.3,0.8678]
[1757305609063,0.1174,4305.0,4304.4,3.6338]
[1757305609265,0.5099,4304.9,4304.8,0.426]
[1757305609460,0.5099,4304.9,4304.8,0.6338]
[1757305609964,0.7145,4304.9,4304.8,0.426]
[1757305614467,0.8305,4304.9,4304.8,0.426]
[1757305615970,0.8305,4304.9,4304.8,0.6338]
[1757305616172,0.6259,4304.9,4304.8,0.6338]
[1757305617764,0.8305,4304.9,4304.8,0.426]
[1757305621367,0.8319,4304.5,4304.4,4.2236513]
[1757305621572,0.8319,4304.5,4304.4,4.4576513]
[1757305621773,0.8319,4304.5,4304.4,4.6695513]
[1757305623465,0.8319,4304.5,4304.4,4.8773513]
[1757305623666,0.6273,4304.5,4304.4,4.8773513]
[1757305624867,0.6273,4304.5,4304.4,1.6695513]
[1757305625273,0.6273,4304.5,4304.4,4.8773513]
[1757305626470,0.4209,4304.5,4304.4,4.8773513]
[1757305626671,0.3035,4304.5,4304.4,4.8773513]
[1757305627772,0.116,4304.9,4304.7,0.4249]
[1757305628069,0.116,4304.9,4304.8,1.6687513]
[1757305631069,0.4299,4304.9,4304.8,1.4347513]
[1757305631268,0.4299,4304.9,4304.7,1.67091648]
[1757305631269,0.5301,4304.9,4304.6,1.67091648]
[1757305631469,0.728,4304.8,4304.7,0.8017513]
[1757305631774,0.728,4304.8,4304.7,1.0357513]
[1757305632270,0.728,4304.8,4304.7,0.8017513]
[1757305632576,0.844,4304.8,4304.7,0.8017513]
[1757305633069,0.844,4304.8,4304.7,1.0119513]
[1757305635681,0.844,4304.8,4304.7,1.2266513]
[1757305641080,0.844,4304.8,4304.7,1.4347513]
[1757305641474,0.4299,4304.8,4304.7,1.4347513]
[1757305641775,0.116,4304.8,4304.7,1.6687513]
[1757305642080,0.6385,4304.8,4304.7,1.4606513]
[1757305642581,0.6385,4304.8,4304.7,1.6687513]
[1757305643081,0.6385,4304.8,4304.7,3.33966778]
[1757305644384,0.116,4304.8,4304.7,1.6687513]
[1757305645981,0.4299,4304.8,4304.7,1.6687513]
[1757305648282,0.6385,4304.8,4304.7,1.6687513]
[1757305648481,0.6385,4304.8,4304.7,1.4606513]
[1757305648684,0.6385,4304.8,4304.7,1.6687513]
[1757305649180,0.844,4304.8,4304.7,0.2102]
[1757305649386,0.844,4304.8,4304.7,1.90510771]
[1757305650986,0.844,4304.8,4304.7,1.67110771]
[1757305651289,0.844,4304.8,4304.7,1.88130771]
[1757305651587,0.844,4304.8,4304.7,0.2102]
[1757305651980,0.844,4304.8,4304.7,0.4442]
[1757305652480,0.6385,4304.8,4304.7,0.867]
[1757305652674,0.116,4304.8,4304.7,0.867]
[1757305653082,0.116,4304.8,4304.7,2.0869013]
[1757305654089,0.116,4304.8,4304.7,6.0869013]
[1757305654289,0.3139,4305.4,4304.8,0.092]
[1757305654492,0.3139,4305.4,4305.3,2.85924314]
[1757305654681,0.3139,4305.4,4305.3,3.09324314]
[1757305654988,0.5225,4305.4,4305.3,3.00124314]
[1757305655885,0.728,4305.4,4305.3,3.00124314]
[1757305656193,0.728,4305.4,4305.3,1.3301513]
[1757305659891,0.3957,4305.3,4305.1,1.67109184]
[1757305660183,0.6877,4305.2,4305.0,1.90509184]
[1757305660388,0.6877,4305.1,4305.0,1.67109184]
[1757305660586,0.8077,4305.0,4304.9,0.234]
[1757305660790,0.8077,4305.0,4304.9,2.70684314]
[1757305660984,0.8077,4305.0,4304.9,2.85324314]
[1757305663292,0.8077,4305.0,4304.9,2.99964314]
[1757305668398,0.8077,4305.0,4304.9,2.85324314]
[1757305668600,0.8077,4305.0,4304.9,1.90509184]
[1757305668901,0.292,4304.9,4304.7,1.74069184]
[1757305669101,0.6877,4304.8,4304.7,0.0696]
[1757305670397,0.6877,4304.8,4304.7,0.216]
[1757305670900,0.6877,4304.8,4304.7,0.1464]
[1757305671292,0.6877,4304.8,4304.7,0.9481513]
[1757305671703,0.6877,4304.8,4304.7,1.0945513]
[1757305673099,0.6877,4304.8,4304.7,0.9481513]
[1757305674206,0.6877,4304.8,4304.7,0.8017513]
[1757305674397,0.6877,4304.8,4304.5,0.0696]
[1757305685707,0.292,4304.8,4304.7,0.3864]
[1757305687712,0.4966,4304.8,4304.7,0.2944]
[1757305688209,0.7083,4304.8,4304.7,0.2944]
[1757305688410,0.4966,4304.8,4304.7,0.2944]
[1757305688609,0.292,4304.8,4304.7,0.3864]
[1757305688810,0.425,4305.0,4304.7,0.2944]
[1757305689108,0.425,4305.0,4304.9,0.3864]
[1757305690106,0.425,4305.0,4304.9,2.05749184]
[1757305690312,0.1174,4305.5,4305.4,0.2944]
[1757305690614,0.322,4305.5,4305.4,1.3046828]
[1757305690913,0.627,4305.5,4305.4,4.5124828]
[1757305691411,0.4224,4305.5,4305.4,4.6044828]
[1757305691615,0.305,4305.5,4305.4,4.6044828]
[1757305691809,0.1174,4306.0,4305.4,4.5124828]
[1757305692012,0.5096,4305.9,4305.8,0.2944]
[1757305692203,3.2078,4306.2,4305.8,0.2944]
[1757305692204,3.2078,4306.2,4305.8,1.3966828]
[1757305692408,0.305,4306.1,4306.0,0.2944]
[1757305692609,0.305,4306.1,4306.0,0.3864]
[1757305693214,0.305,4306.1,4306.0,3.5942]
[1757305694714,0.305,4306.4,4306.1,0.092]
[1757305694909,0.1259,4307.0,4306.8,0.3864]
[1757305694910,0.305,4306.9,4306.8,0.3864]
[1757305695110,0.305,4306.9,4306.8,0.6204]
[1757305695405,0.5096,4306.9,4306.8,0.5284]
[1757305695610,0.305,4306.9,4306.8,0.6204]
[1757305696012,0.5096,4306.9,4306.8,0.5284]
[1757305696317,0.7213,4306.9,4306.8,0.3812]
[1757305697919,0.7213,4306.9,4306.8,0.5284]
[1757305702118,0.7213,4306.9,4306.8,3.7362]
[1757305709024,0.7213,4306.9,4306.8,3.5022]
[1757305709316,0.7213,4306.9,4306.8,3.7362]
[1757305711117,0.7213,4306.9,4306.8,0.5284]
[1757305712824,0.7213,4306.9,4306.8,1.5386828]
[1757305713418,0.305,4306.9,4306.8,1.6304828]
[1757305716625,0.1259,4307.5,4307.4,0.1468]
[1757305716626,0.5323,4307.5,4307.4,0.1468]
[1757305717227,0.8382,4307.5,4307.4,0.1468]
[1757305718529,0.8382,4307.5,4307.3,0.234]
[1757305721828,0.8382,4307.5,4307.2,0.0696]
[1757305722531,4.046,4307.5,4307.2,0.0696]
[1757305723632,4.046,4307.5,4307.4,0.1468]
[1757305725131,0.8382,4307.5,4307.4,0.1468]
[1757305726334,0.8382,4307.5,4307.2,0.0696]
[1757305729341,0.8382,4307.5,4307.2,3.2774]
[1757305729342,0.5323,4307.5,4307.2,3.2774]
[1757305729532,0.7123,4307.3,4307.2,3.4242]
[1757305729843,0.7123,4307.3,4307.2,3.3546]
[1757305731049,0.7123,4307.3,4307.2,3.5886]
[1757305733050,0.7123,4307.3,4307.2,0.234]
[1757305733251,0.7123,4307.3,4307.2,0.3808]
[1757305734351,0.7123,4307.3,4307.2,1.234978]
[1757305740754,0.7123,4307.3,4307.2,0.234]
[1757305741563,0.7123,4307.3,4307.2,0.3808]
[1757305742962,0.7123,4307.3,4307.2,2.19747914]
[1757305743361,0.7123,4307.3,4307.2,2.05067914]
[1757305743663,0.7123,4307.3,4307.2,2.90485714]
[1757305745062,0.7123,4307.3,4307.2,2.05067914]
[1757305745266,0.7123,4307.3,4307.2,2.90485714]
[1757305745962,0.7123,4307.3,4307.2,2.75805714]
[1757305747560,0.7123,4307.3,4307.2,2.90465714]
[1757305747761,0.7123,4307.3,4307.2,3.05125714]
[1757305748356,0.512,4307.3,4307.2,3.05125714]
[1757305748657,0.3059,4307.3,4307.2,1.472978]
[1757305748852,0.5049,4307.9,4307.8,0.2932]
[1757305749156,0.5049,4307.9,4307.8,1.238978]
[1757305750358,0.3012,4308.4,4307.9,0.0916]
[1757305750662,0.3012,4308.4,4308.3,1.238978]
[1757305750862,0.3012,4308.4,4308.3,3.1447109]
[1757305751164,0.5049,4308.4,4308.3,1.381378]
[1757305752164,0.5049,4308.4,4308.3,1.472978]
[1757305752461,0.5049,4308.4,4308.3,1.381378]
[1757305752662,0.7139,4308.4,4308.3,1.381378]
[1757305756061,0.7139,4308.4,4308.3,1.088178]
[1757305757964,0.7139,4308.4,4308.3,1.234778]
[1757305758860,0.7139,4308.4,4308.3,1.381378]
[1757305760960,0.3012,4308.3,4308.1,3.2774]
[1757305761164,0.7139,4308.2,4308.1,3.2774]
[1757305761567,0.7139,4308.2,4308.1,3.2078]
[1757305761955,0.7139,4308.2,4308.1,3.5884]
[1757305763570,0.7139,4308.2,4308.1,3.735]
[1757305765865,0.7139,4308.2,4308.1,3.501]
[1757305766068,0.7139,4308.2,4308.1,3.735]
[1757305770873,0.7139,4308.2,4308.0,0.854178]
[1757305770874,0.8408,4308.0,4307.9,0.0696]
[1757305771270,0.3012,4307.9,4307.6,3.2078]
[1757305771577,0.7139,4307.7,4307.6,3.3544]
[1757305774276,0.7139,4307.7,4307.6,0.1466]
[1757305777282,0.5049,4307.7,4307.6,0.2932]
[1757305777484,0.5049,4307.7,4307.6,0.3849]
[1757305778079,0.5049,4307.7,4307.6,0.2932]
[1757305779686,0.7092,4307.7,4307.6,0.2932]
[1757305792792,0.7092,4307.7,4307.6,0.1466]
[1757305796783,0.7092,4307.7,4307.5,0.234]
[1757305797897,0.7092,4307.7,4307.6,0.1467]
[1757305798093,0.7092,4307.7,4307.5,0.234]
[1757305799095,0.7092,4307.7,4307.5,1.9057329]
[1757305799295,0.3047,4307.6,4307.5,1.9057329]
[1757305799489,0.7086,4307.6,4307.5,2.0524329]
[1757305801102,0.7086,4307.6,4307.5,0.3807]
[1757305802298,0.7086,4307.6,4307.5,0.234]
[1757305803599,0.7086,4307.6,4307.5,0.5274]
[1757305806201,0.7086,4307.6,4307.5,0.234]
[1757305806402,0.1288,4307.5,4307.4,3.2078]
[1757305806598,0.8179,4307.5,4307.4,3.2078]
[1757305806800,0.8179,4307.5,4307.4,3.4418]
[1757305807102,0.8179,4307.5,4307.3,1.97569001]
[1757305807302,0.2915,4307.4,4307.3,1.97569001]
[1757305807602,0.6891,4307.4,4307.3,1.90609001]
[1757305807802,0.6891,4307.4,4307.3,2.19889001]
[1757305808002,0.4938,4307.4,4307.3,1.62710939]
[1757305808397,0.4938,4307.4,4307.3,1.53560939]
[1757305809305,0.4938,4307.4,4307.3,3.29831654]
[1757305809501,0.2915,4307.9,4307.8,0.2928]
[1757305809705,0.2915,4307.9,4307.8,1.62710939]
[1757305810007,0.2915,4307.9,4307.8,1.85923939]
[1757305810798,0.2915,4307.9,4307.8,1.62710939]
[1757305812300,0.2915,4308.4,4307.9,0.0915]
[1757305812506,0.2915,4308.4,4308.3,4.30810939]
[1757305812706,4.0179,4309.0,4308.9,0.1464]
[1757305814901,0.8101,4309.0,4308.9,0.1464]
[1757305815505,0.8101,4309.0,4308.8,1.00880939]
[1757305815702,0.6891,4308.9,4308.8,1.00880939]
[1757305815905,0.6891,4308.9,4308.8,1.15520939]
[1757305816600,0.6891,4308.9,4308.8,1.30160939]
[1757305821511,0.6891,4308.9,4308.7,0.234]
[1757305822310,0.6891,4308.9,4308.4,1.00880939]
[1757305822311,0.1288,4308.5,4308.4,1.00880939]
[1757305822511,0.2915,4308.4,4308.3,3.2078]
[1757305822712,0.6891,4308.4,4308.3,3.4418]
[1757305823309,0.6891,4308.4,4308.3,3.7346]
[1757305826714,0.6891,4308.4,4308.3,3.4418]
[1757305827315,0.6891,4308.4,4308.3,3.5884]
[1757305827513,0.6891,4308.4,4308.3,3.3544]
[1757305827715,0.6891,4308.4,4308.3,3.4418]
[1757305829713,0.6891,4308.4,4308.3,3.5885]
[1757305830815,0.6891,4308.4,4308.3,3.2078]
[1757305831009,0.6891,4308.4,4308.3,0.234]
[1757305831613,0.6891,4308.4,4308.3,0.3807]
[1757305835020,0.6891,4308.4,4308.3,0.5274]
[1757305835617,0.6891,4308.4,4308.3,0.2934]
[1757305835920,0.6891,4308.4,4308.3,0.5274]
[1757305836314,0.6891,4308.4,4308.3,0.2934]
[1757305837318,0.6891,4308.4,4308.3,0.1467]
[1757305839122,0.6891,4308.4,4308.3,0.2941]
[1757305839924,0.6891,4308.4,4308.3,0.1467]
[1757305840123,0.3976,4308.4,4308.2,1.90388969]
[1757305840420,0.7221,4308.3,4308.2,1.90388969]
[1757305841519,0.7221,4308.3,4308.2,1.66988969]
[1757305841720,4.7221,4308.3,4308.1,0.0696]
[1757305851132,0.9561,4308.2,4308.1,0.0696]
[1757305851440,0.1289,4308.0,4307.6,0.234]
[1757305851730,0.5162,4307.7,4307.6,0.5288]
[1757305851934,0.7221,4307.7,4307.6,0.5288]
[1757305852333,0.7221,4307.7,4307.6,2.19868969]
[1757305853732,0.5162,4307.7,4307.6,2.29088969]
[1757305854831,0.3187,4307.7,4307.6,2.29088969]
[1757305856638,0.5162,4307.7,4307.6,2.29088969]
[1757305856830,0.5162,4307.7,4307.6,2.19868969]
[1757305858335,0.5162,4307.7,4307.6,3.05259527]
[1757305858828,0.5162,4307.7,4307.6,3.14479527]
[1757305859739,0.5162,4307.7,4307.6,3.05259527]
[1757305860333,0.5322,4308.5,4308.4,0.2948]
[1757305860541,0.5322,4308.5,4308.4,1.00130558]
[1757305860843,0.5322,4308.5,4308.1,3.2078]
[1757305860844,0.3187,4308.4,4308.1,3.2078]
[1757305861039,0.5323,4308.0,4307.9,1.9032281]
[1757305861341,0.3187,4307.8,4307.7,1.6692281]
[1757305861529,0.7221,4307.8,4307.7,1.9032281]
[1757305864040,0.7221,4307.7,4307.5,2.52313368]
[1757305864237,0.7221,4307.7,4307.6,0.234]
[1757305864435,0.7221,4307.7,4307.6,1.9032281]
[1757305864630,0.7221,4307.7,4307.6,2.0506281]
[1757305868349,0.7221,4307.7,4307.6,1.8166281]
[1757305868550,0.7221,4307.7,4307.6,2.0506281]
[1757305870259,0.7221,4307.7,4307.6,0.3814]
[1757305870659,0.7221,4307.7,4307.6,0.5284]
[1757305875566,0.7221,4307.7,4307.6,0.3814]
[1757305876962,0.7221,4307.7,4307.6,0.5284]
[1757305879071,0.3376,4308.5,4308.4,0.294]
[1757305879267,0.3376,4308.5,4308.4,1.23980558]
[1757305879562,0.6398,4308.5,4308.4,1.14790558]
[1757305879768,0.6398,4308.5,4308.4,1.23980558]
[1757305880357,0.8426,4308.5,4308.4,1.14790558]
[1757305882365,0.3298,4309.0,4308.9,0.294]
[1757305882569,0.632,4309.0,4308.9,1.14790558]
[1757305882869,0.632,4309.0,4308.9,1.23980558]
[1757305883272,0.632,4309.0,4308.9,1.14790558]
[1757305885771,0.4232,4309.0,4308.9,0.3859]
[1757305885971,0.3022,4309.0,4308.9,0.3859]
[1757305886171,0.3022,4309.0,4308.9,1.23980558]
[1757305887462,0.4256,4309.0,4308.9,1.23980558]
[1757305888873,0.1288,4309.5,4309.0,0.0919]
[1757305889072,0.3376,4309.5,4309.4,0.3859]
[1757305889375,0.5404,4309.5,4309.4,0.294]
[1757305889568,0.8426,4309.5,4309.4,0.294]
[1757305890270,0.8426,4309.5,4309.4,1.14790558]
[1757305890674,0.5404,4309.5,4309.1,1.08790558]
[1757305890874,0.1234,4309.0,4308.8,4.06170558]
[1757305891074,1.56770558,4308.9,4308.8,3.2078]
[1757305895281,0.7138,4308.9,4308.8,3.2078]
[1757305896879,0.7138,4308.9,4308.8,3.3545]
[1757305897179,0.511,4308.9,4308.8,3.5012]
[1757305897974,0.3022,4308.9,4308.8,3.5928]
[1757305898180,0.5024,4308.9,4308.8,3.5012]
[1757305898380,0.7087,4308.9,4308.8,3.2078]
[1757305900386,0.7087,4308.9,4308.7,0.0696]
[1757305902584,0.7087,4308.9,4308.8,0.1467]
[1757305902784,0.7087,4308.9,4308.8,0.2934]
[1757305905184,0.7087,4308.9,4308.7,0.0696]
[1757305906286,3.9352,4308.8,4308.7,0.0696]
[1757305906679,0.1182,4308.5,4308.2,0.234]
[1757305906885,0.5211,4308.3,4308.2,0.5274]
[1757305907280,0.7274,4307.7,4307.6,5.0237281]
[1757305907582,0.5211,4307.7,4307.6,3.5012]
[1757305907888,0.3209,4307.7,4307.6,3.5928]
[1757305908582,0.1182,4308.0,4307.6,3.5928]
[1757305908784,0.1182,4308.0,4307.9,1.14730558]
[1757305908990,0.6393,4308.0,4307.9,1.14730558]
[1757305910186,0.8456,4308.0,4307.9,1.14730558]
[1757305910694,0.8456,4308.0,4307.7,0.3036]
[1757305911082,0.8456,4308.0,4307.7,0.0696]
[1757305911682,0.8456,4308.0,4307.9,0.1467]
[1757305912390,0.8456,4308.0,4307.9,0.2934]
[1757305913089,0.8456,4308.0,4307.9,0.1467]
[1757305916680,0.8456,4308.0,4307.9,1.23890558]
[1757305916992,0.3184,4308.5,4308.4,0.2934]
[1757305917193,0.3184,4308.5,4308.4,1.14730558]
[1757305917194,0.5247,4308.5,4308.4,1.14730558]
[1757305917584,0.8456,4308.5,4308.4,0.2934]
[1757305920495,0.8456,4308.5,4308.1,1.0085016]
[1757305920792,0.7274,4308.2,4308.1,1.1552016]
[1757305924493,0.7274,4308.2,4308.1,1.3019016]
[1757305924790,0.1182,4308.5,4308.2,0.0916]
[1757305924791,0.4391,4308.5,4308.2,0.0916]
[1757305925095,0.6393,4308.5,4308.4,0.2934]
[1757305925898,0.8456,4308.5,4308.4,0.2934]
[1757305928696,0.3209,4308.5,4308.4,0.3851]
[1757305928900,0.3189,4308.9,4308.4,0.2934]
[1757305929091,0.5237,4308.9,4308.8,0.2938]
[1757305929697,0.7236,4308.9,4308.8,0.2938]
[1757305931697,0.7236,4308.9,4308.8,0.1469]
[1757305933499,0.4047,4308.6,4308.5,0.234]
[1757305933795,0.7236,4308.6,4308.5,0.234]
[1757305935601,0.445,4308.5,4308.3,4.2859016]
[1757305935802,0.7236,4308.4,4308.3,4.4328016]
[1757305935993,0.7236,4308.4,4308.3,4.6668016]
[1757305936504,0.7236,4308.4,4308.3,4.4503016]
[1757305937402,0.7236,4308.4,4308.3,4.5972016]
[1757305937703,0.7236,4308.4,4308.3,3.2078]
[1757305937900,0.5308,4308.0,4307.9,2.8246297]
[1757305938102,0.8497,4308.0,4307.9,3.0586297]
[1757305938305,0.8497,4308.0,4307.9,1.3894016]
[1757305940897,0.8497,4308.0,4307.9,1.5363016]
[1757305941101,0.6498,4308.0,4307.9,1.6280016]
[1757305941297,0.3189,4308.0,4307.9,1.6280016]
[1757305943108,0.445,4308.0,4307.9,1.6280016]
[1757305945610,0.6498,4308.0,4307.9,1.6280016]
[1757305945810,0.8497,4308.0,4307.9,1.5363016]
[1757305946502,0.8497,4308.0,4307.9,0.1469]
[1757305946710,0.7236,4307.9,4307.8,3.2078]
[1757305949601,0.7236,4307.9,4307.8,3.3543]
[1757305951105,0.7236,4307.9,4307.8,3.2078]
[1757305953103,0.7236,4307.9,4307.8,3.3543]
[1757305954713,0.7236,4307.9,4307.8,3.2078]
[1757305955408,8.16353,4307.9,4307.6,0.0696]
[1757305955714,0.704,4307.7,4307.6,0.0696]
[1757305956103,0.3034,4307.4,4307.1,3.2078]
[1757305956308,0.704,4307.2,4307.1,3.2078]
[1757305957607,0.704,4307.2,4307.1,3.3541]
[1757305959509,0.704,4307.2,4307.1,3.5004]
[1757305960216,0.5005,4307.2,4307.1,3.5923]
[1757305961013,0.3034,4307.2,4307.1,3.5923]
[1757305961212,0.1288,4307.5,4307.2,0.0919]
[1757305961417,0.5294,4307.5,4307.4,0.2926]
[1757305961917,0.8328,4307.5,4307.4,0.2926]
[1757305962218,0.8328,4307.5,4307.4,0.1463]
[1757305962817,0.3034,4307.4,4307.1,3.2078]
[1757305963013,0.704,4307.2,4307.1,3.2078]
[1757305963222,0.8328,4307.0,4306.9,0.0696]
[1757305963612,0.8328,4307.0,4306.5,3.4418]
[1757305963613,0.5294,4307.0,4306.5,3.4418]
[1757305963813,0.704,4306.6,4306.5,3.5881]
[1757305964116,0.704,4306.6,4306.5,3.3541]
[1757305964314,0.704,4306.6,4306.5,3.5004]
[1757305965622,0.3034,4306.6,4306.5,3.8263]
[1757305965920,0.4194,4307.2,4307.1,0.3845]
[1757305966115,0.6165,4307.2,4307.1,0.2926]
[1757305966422,0.4006,4306.9,4306.8,0.234]
[1757305966623,0.704,4306.9,4306.8,0.234]
[1757305966828,0.704,4306.9,4306.8,0.3803]
[1757305970627,0.704,4306.9,4306.6,0.0696]
[1757305972717,0.704,4306.9,4306.8,0.2926]
[1757305976729,0.704,4306.9,4306.8,0.1463]
[1757305978230,0.704,4306.9,4306.8,0.2926]
[1757305978427,0.704,4306.9,4306.8,1.1469137]
[1757305979829,0.704,4306.9,4306.8,0.2926]
[1757305980029,0.704,4306.9,4306.8,1.1469137]
[1757305980529,0.3034,4306.9,4306.8,1.2388137]
[1757305980726,3.2078,4307.4,4306.8,0.8543137]
[1757305980931,0.5005,4307.3,4307.2,1.1469137]
[1757305981131,0.704,4307.3,4307.2,1.1469137]
[1757305981331,0.8199,4307.3,4307.2,1.1469137]
[1757305983927,0.5294,4307.0,4306.9,1.2346137]
[1757305984121,0.8328,4307.0,4306.9,1.3809137]
[1757305984839,0.6293,4307.0,4306.9,1.4728137]
[1757305987031,0.6293,4307.0,4306.9,1.3809137]
[1757305988936,0.6293,4307.0,4306.9,1.4725137]
[1757305989133,0.3034,4307.0,4306.9,1.4725137]
[1757305989332,0.0244,4307.3,4307.2,0.3844]
[1757305989640,3.2078,4307.9,4307.2,0.3844]
[1757305989641,0.2988,4308.0,4307.2,2.2354274]
[1757305989828,0.2988,4308.0,4307.9,0.8543137]
[1757305989829,0.4201,4308.0,4307.9,0.8543137]
[1757305990035,0.4201,4308.0,4307.9,1.0883137]
[1757305990936,0.2988,4308.3,4307.9,5.27333183]
[1757305991126,0.2988,4308.3,4308.2,2.523978]
[1757305991331,0.2988,4308.3,4308.2,1.0883137]
[1757305992637,0.2988,4308.3,4308.2,4.2961137]
[1757305994038,0.5115,4308.3,4308.2,4.2961137]
[1757306001639,0.5115,4308.3,4308.2,1.0883137]
[1757306001845,0.5115,4308.3,4308.2,4.2961137]
[1757306002740,0.7111,4308.3,4308.2,4.0621137]
[1757306002939,0.7111,4308.3,4308.2,4.2951137]
[1757306003845,0.7111,4308.3,4308.2,4.0621137]
[1757306004146,0.5115,4308.3,4308.2,4.2951137]
[1757306004346,0.5115,4308.3,4308.2,4.0621137]
[1757306004541,0.4249,4308.5,4308.2,4.2951137]
[1757306004846,0.2988,4308.4,4308.2,4.2951137]
[1757306005046,0.1261,4308.5,4308.2,4.2951137]
[1757306005847,0.2988,4308.4,4308.2,4.2951137]
[1757306006546,0.1261,4308.5,4308.2,4.2951137]
[1757306007241,0.1213,4309.0,4308.4,0.8543137]
[1757306007553,0.1213,4309.5,4308.9,4.0621137]
[1757306007741,0.4201,4309.5,4309.4,0.8543137]
[1757306007941,0.4201,4309.5,4309.4,1.0873137]
[1757306008149,0.1213,4309.5,4309.4,1.0873137]
[1757306008445,0.334,4310.0,4309.4,4.2951137]
[1757306008646,0.6328,4310.0,4309.9,0.8543137]
[1757306009445,0.8324,4310.0,4309.9,0.8543137]
[1757306013553,0.6328,4310.0,4309.9,0.8543137]
[1757306013748,0.8324,4310.0,4309.9,0.8543137]
[1757306016354,0.8324,4310.0,4309.8,1.0873137]
[1757306016556,0.7033,4309.9,4309.8,1.0873137]
[1757306020056,0.2993,4309.9,4309.8,1.0873137]
[1757306021048,0.1213,4310.0,4309.8,1.0873137]
[1757306021244,0.2993,4310.2,4309.8,1.0873137]
[1757306021444,0.2993,4310.2,4310.1,0.8543137]
[1757306021651,0.2993,4310.2,4310.1,1.0873137]
[1757306022949,0.5041,4310.2,4310.1,1.0873137]
[1757306023656,0.7033,4310.2,4310.1,1.0873137]
[1757306026558,0.5041,4310.2,4310.1,1.0873137]
[1757306026856,0.2993,4310.2,4310.1,1.0873137]
[1757306028459,0.2993,4310.4,4310.1,1.0873137]
[1757306028652,0.2993,4310.4,4310.3,4.0621137]
[1757306029253,0.2993,4310.4,4310.3,4.9164274]
[1757306029964,0.2993,4310.4,4310.3,4.0621137]
[1757306031548,0.5041,4310.4,4310.3,4.0621137]
[1757306033164,0.7033,4310.4,4310.3,3.2078]
[1757306033461,0.7033,4310.4,4310.3,3.4408]
[1757306033650,0.7033,4310.4,4310.3,3.2078]
[1757306033856,0.7033,4310.4,4310.3,3.4408]
[1757306035160,0.7033,4310.4,4310.3,3.2078]
[1757306035460,0.7033,4310.4,4310.1,0.233]
[1757306036059,0.404,4310.4,4310.2,0.8543137]
[1757306036261,0.7033,4310.3,4310.2,0.8543137]
[1757306036760,0.2993,4310.3,4310.2,4.0621137]
[1757306036965,0.2993,4310.4,4310.2,4.0621137]
[1757306037260,0.2993,4310.9,4310.3,1.0873137]
[1757306037472,0.2993,4310.9,4310.8,0.8543137]
[1757306037658,0.5041,4310.9,4310.8,0.8543137]
[1757306038061,0.5041,4310.9,4310.7,0.233]
[1757306038062,0.7033,4310.9,4310.7,0.233]
[1757306051271,0.7033,4310.9,4310.6,0.0695]
[1757306052272,0.93528,4310.9,4310.6,0.0695]
[1757306052665,0.7033,4310.9,4310.6,0.0695]
[1757306054868,0.2966,4310.4,4310.3,1.6696643]
[1757306055073,0.2966,4310.4,4309.1,0.0696]
[1757306055074,0.4063,4309.7,4309.3,33.7102]
[1757306055272,0.6592,4309.5,4309.4,0.5252]
[1757306055482,0.6592,4309.5,4309.4,0.7273]
[1757306056070,0.6592,4309.5,4309.4,0.2922]
[1757306056373,0.6592,4309.2,4309.1,3.2078]
[1757306059680,0.4063,4309.2,4309.1,3.8985]
[1757306059985,0.1942,4309.2,4309.1,3.6063]
[1757306060675,0.1942,4309.2,4309.1,3.8985]
[1757306060879,0.1942,4309.6,4309.5,0.8129]
[1757306061684,3.2078,4310.0,4309.5,0.5207]
[1757306061987,3.2078,4310.0,4309.5,0.8129]
[1757306061988,0.1942,4309.6,4309.5,0.8129]
[1757306062182,0.4063,4309.6,4309.2,0.2922]
[1757306062378,0.4063,4309.3,4309.2,0.2021]
[1757306062586,0.6592,4309.3,4309.2,0.4943]
[1757306065787,0.4063,4309.3,4309.2,0.6907]
[1757306067281,0.1942,4309.3,4309.2,0.6907]
[1757306067685,3.2078,4310.0,4309.2,0.6907]
[1757306067984,0.63834,4309.9,4309.8,0.4943]
[1757306068189,0.89124,4309.9,4309.8,0.4943]
[1757306068389,0.6592,4309.9,4309.8,0.4943]
[1757306071492,0.6592,4309.9,4309.8,0.2922]
[1757306072091,0.6592,4309.9,4309.5,0.2922]
[1757306072691,0.6592,4309.9,4309.1,3.2774]
[1757306072892,0.2529,4309.8,4309.2,0.2922]
[1757306073194,0.2529,4309.8,4309.2,0.3985]
[1757306073385,0.1942,4309.6,4309.5,0.1222]
[1757306073587,0.1942,4309.6,4309.5,0.8129]
[1757306075091,3.4408,4310.0,4309.6,0.2922]
[1757306075391,3.2078,4310.0,4309.9,1.72537801]
[1757306075892,0.2005,4310.0,4309.9,0.718]
[1757306077183,0.4027,4310.0,4309.9,0.718]
[1757306077391,0.6552,4310.0,4309.9,0.307]
[1757306077694,0.4027,4309.7,4309.6,0.1962]
[1757306077891,0.4027,4309.7,4309.6,0.5032]
[1757306078084,0.4027,4309.7,4309.6,0.718]
[1757306081185,0.6552,4309.7,4309.6,0.718]
[1757306081889,0.4027,4309.7,4309.6,0.718]
[1757306085894,0.6357,4310.1,4310.0,0.8405]
[1757306086099,0.4335,4310.1,4310.0,0.8405]